[Event "RUS-ch Blitz Women 2018"]
[Site "Sochi"]
[Date "2018.10.07"]
[Round "15"]
[White "Gritsayeva, Oksana"]
[Black "Vifleemskaia, Svetlana"]
[Result "1/2-1/2"]
[ECO "B01"]
[WhiteElo "2378"]
[BlackElo "2145"]
[Annotator "NA"]
[PlyCount "57"]
[EventDate "2018.10.07"]
[EventType "swiss"]
[EventCountry "RUS"]
[SourceTitle "playchess.com"]
[Source "ChessBase"]
[SourceQuality "1"]
[TimeControl "180+2"]

1. e4 d5 2. exd5 {[%emt 0:00:00]} Nf6 {[%emt 0:00:00]} 3. Nf3 {[%emt 0:00:04]} Bg4 {[%emt 0:00:00]} 4. Be2 {[%emt 0:00:01]} Qxd5 {[%emt 0:00:01]} 5. O-O {[%emt 0:00:04]} Nc6 {[%emt 0:00:19]} 6. h3 {[%emt 0:00:08]} Bh5 {[%emt 0:00:04]} 7. Nc3 {[%emt 0:00:04]} Qd7 {[%emt 0:00:04]} 8. d3 {[%emt 0:00:15]} e6 {[%emt 0:00:10]} 9. Bf4 {[%emt 0:00:06]} Bd6 {[%emt 0:00:04]} 10. Bxd6 {[%emt 0:00:06]} cxd6 {[%emt 0:00:01]} 11. Ng5 {[%emt 0:00:15]} Bxe2 {[%emt 0:00:15]} 12. Nxe2 {[%emt 0:00:01]} O-O {[%emt 0:00:13]} 13. Re1 {[%emt 0:00:11]} d5 {[%emt 0:00:20]} 14. d4 {[%emt 0:00:14]} b5 {[%emt 0:00:12]} 15. Nc1 {[%emt 0:00:05]} Qd6 {[%emt 0:00:10]} 16. Nf3 {[%emt 0:00:07]} Ne4 {[%emt 0:00:06]} 17. Nd3 {[%emt 0:00:03]} a5 {[%emt 0:00:09]} 18. c3 {[%emt 0:00:22]} b4 {[%emt 0:00:08]} 19. cxb4 {[%emt 0:00:18]} Nxb4 {[%emt 0:00:19]} 20. Nfe5 {[%emt 0:00:21]} Rab8 {[%emt 0:00:14]} 21. Re2 {[%emt 0:00:05]} f6 {[%emt 0:00:06]} 22. Nf3 {[%emt 0:00:05]} Qa6 {[%emt 0:00:07]} 23. Nf4 {[%emt 0:00:12]} g5 {[%emt 0:00:05]} 24. Nh5 {[%emt 0:00:08]} Rfc8 {[%emt 0:00:20]} 25. Ne1 {[%emt 0:00:08]} Kf7 {[%emt 0:00:05]} 26. Kh2 {[%emt 0:00:09]} Qd6+ {[%emt 0:00:03]} 27. Kg1 {[%emt 0:00:04]} Qa6 {[%emt 0:00:01]} 28. Kh2 {[%emt 0:00:02]} Qd6+ {[%emt 0:00:01]} 29. Kg1 {[%emt 0:00:02]} 1/2-1/2

[Event "RUS-ch Blitz Women 2018"]
[Site "Sochi"]
[Date "2018.10.07"]
[Round "15"]
[White "Vasilevich, Tatjana"]
[Black "Kashlinskaya, Alina"]
[Result "0-1"]
[ECO "E86"]
[WhiteElo "2360"]
[BlackElo "2447"]
[Annotator "NA"]
[PlyCount "68"]
[EventDate "2018.10.07"]
[EventType "swiss"]
[EventCountry "RUS"]
[SourceTitle "playchess.com"]
[Source "ChessBase"]
[SourceQuality "1"]
[TimeControl "180+2"]

1. d4 {[%emt 0:00:00]} Nf6 {[%emt 0:00:00]} 2. c4 {[%emt 0:00:00]} g6 {[%emt 0:00:00]} 3. Nc3 Bg7 4. e4 {[%emt 0:00:01]} d6 {[%emt 0:00:01]} 5. f3 {[%emt 0:00:01]} O-O {[%emt 0:00:02]} 6. Nge2 {[%emt 0:00:01]} e5 {[%emt 0:00:05]} 7. Be3 {[%emt 0:00:03]} c6 {[%emt 0:00:04]} 8. Qd2 {[%emt 0:00:01]} Nbd7 {[%emt 0:00:01]} 9. Ng3 {[%emt 0:00:07]} exd4 {[%emt 0:00:17]} 10. Bxd4 {[%emt 0:00:01]} a6 {[%emt 0:00:07]} 11. Be2 {[%emt 0:00:13]} b5 {[%emt 0:00:01]} 12. O-O {[%emt 0:00:11]} Ne5 {[%emt 0:00:15]} 13. cxb5 {[%emt 0:00:18]} axb5 {[%emt 0:00:01]} 14. b3 {[%emt 0:00:14]} Nfd7 {[%emt 0:00:36]} 15. Rac1 {[%emt 0:00:09]} b4 {[%emt 0:00:02]} 16. Na4 {[%emt 0:00:00]} c5 {[%emt 0:00:01]} 17. Be3 {[%emt 0:00:09]} Nb6 {[%emt 0:00:08]} 18. Nxb6 {[%emt 0:00:20]} Qxb6 {[%emt 0:00:01]} 19. Rfd1 {[%emt 0:00:00]} Ba6 {[%emt 0:00:25]} 20. Qxd6 {[%emt 0:00:13]} Qxd6 {[%emt 0:00:01]} 21. Rxd6 {[%emt 0:00:01]} Bxe2 {[%emt 0:00:00]} 22. Nxe2 {[%emt 0:00:01]} Rxa2 {[%emt 0:00:01]} 23. Nf4 {[%emt 0:00:06]} Rb2 {[%emt 0:00:09]} 24. Bxc5 {[%emt 0:00:39]} Rxb3 25. Rd5 {[%emt 0:00:22]} Rc8 {[%emt 0:00:51]} 26. Rcd1 {[%emt 0:00:01]} Nc6 {[%emt 0:00:01]} 27. Nd3 {[%emt 0:00:10]} Bc3 {[%emt 0:00:05]} 28. Bd6 {[%emt 0:00:22]} Kg7 {[%emt 0:00:01]} 29. Nc5 {[%emt 0:00:07]} Rb2 {[%emt 0:00:05]} 30. Nd3 {[%emt 0:00:03]} Ra2 {[%emt 0:00:03]} 31. Rb1 {[%emt 0:00:05]} Rd2 {[%emt 0:00:08]} 32. Nxb4 {[%emt 0:00:01]} Nxb4 {[%emt 0:00:01]} 33. Bxb4 {[%emt 0:00:00]} Bxb4 {[%emt 0:00:01]} 34. Rxb4 {[%emt 0:00:02]} Rc1# {[%emt 0:00:01]} 0-1

[Event "RUS-ch Blitz Women 2018"]
[Site "Sochi"]
[Date "2018.10.07"]
[Round "15"]
[White "Belenkaya, Dina"]
[Black "Maletina, Tatiana"]
[Result "0-1"]
[ECO "C00"]
[WhiteElo "2329"]
[BlackElo "2270"]
[Annotator "NA"]
[PlyCount "146"]
[EventDate "2018.10.07"]
[EventType "swiss"]
[EventCountry "RUS"]
[SourceTitle "playchess.com"]
[Source "ChessBase"]
[SourceQuality "1"]
[TimeControl "180+2"]

1. e4 {[%emt 0:00:00]} e6 {[%emt 0:00:00]} 2. Qe2 {[%emt 0:00:02]} c5 {[%emt 0:00:03]} 3. Nf3 {[%emt 0:00:02]} d5 {[%emt 0:00:05]} 4. exd5 {[%emt 0:00:04]} Qxd5 {[%emt 0:00:01]} 5. Nc3 {[%emt 0:00:20]} Qd8 {[%emt 0:00:01]} 6. g3 {[%emt 0:00:02]} Nc6 {[%emt 0:00:01]} 7. Bg2 {[%emt 0:00:01]} Nf6 {[%emt 0:00:01]} 8. O-O {[%emt 0:00:04]} Be7 {[%emt 0:00:01]} 9. Rd1 {[%emt 0:00:20]} O-O {[%emt 0:00:04]} 10. b3 {[%emt 0:00:12]} Nd5 {[%emt 0:00:13]} 11. Nxd5 {[%emt 0:00:13]} exd5 {[%emt 0:00:02]} 12. d4 {[%emt 0:00:05]} Bf6 {[%emt 0:00:07]} 13. Bb2 {[%emt 0:00:02]} Re8 {[%emt 0:00:04]} 14. Qb5 {[%emt 0:00:08]} Qb6 {[%emt 0:00:18]} 15. a4 {[%emt 0:00:24]} Bg4 {[%emt 0:00:15]} 16. c3 {[%emt 0:01:00]} cxd4 {[%emt 0:00:09]} 17. Qxb6 {[%emt 0:00:05]} axb6 {[%emt 0:00:03]} 18. cxd4 {[%emt 0:00:02]} Re2 {[%emt 0:00:06]} 19. Bc3 {[%emt 0:00:02]} Rae8 {[%emt 0:00:11]} 20. Rac1 {[%emt 0:00:03]} h6 {[%emt 0:00:05]} 21. h3 {[%emt 0:00:01]} Bf5 {[%emt 0:00:10]} 22. Ne5 {[%emt 0:00:12]} Bc2 {[%emt 0:00:11]} 23. Rd2 {[%emt 0:00:13]} Rxd2 {[%emt 0:00:03]} 24. Bxd2 {[%emt 0:00:01]} Bxb3 {[%emt 0:00:02]} 25. Nxc6 {[%emt 0:00:03]} bxc6 {[%emt 0:00:04]} 26. Rxc6 {[%emt 0:00:01]} Bxd4 {[%emt 0:00:07]} 27. Rd6 {[%emt 0:00:05]} Re2 {[%emt 0:00:06]} 28. Be3 {[%emt 0:00:01]} Re1+ {[%emt 0:00:08]} 29. Kh2 {[%emt 0:00:01]} Bxe3 {[%emt 0:00:01]} 30. fxe3 {[%emt 0:00:01]} Rxe3 {[%emt 0:00:01]} 31. Bxd5 {[%emt 0:00:04]} Re2+ {[%emt 0:00:16]} 32. Bg2 {[%emt 0:00:01]} Bxa4 {[%emt 0:00:03]} 33. Rxb6 {[%emt 0:00:01]} g6 {[%emt 0:00:10]} 34. Kg1 {[%emt 0:00:02]} Rd2 {[%emt 0:00:05]} 35. Rb7 {[%emt 0:00:05]} Kg7 {[%emt 0:00:03]} 36. h4 {[%emt 0:00:01]} h5 {[%emt 0:00:02]} 37. Ra7 {[%emt 0:00:02]} Bb3 {[%emt 0:00:03]} 38. Rb7 {[%emt 0:00:01]} Be6 {[%emt 0:00:01]} 39. Rc7 {[%emt 0:00:02]} Kf6 {[%emt 0:00:03]} 40. Rc5 {[%emt 0:00:01]} Rd1+ {[%emt 0:00:02]} 41. Kf2 {[%emt 0:00:01]} Ra1 {[%emt 0:00:04]} 42. Be4 {[%emt 0:00:03]} Ra2+ {[%emt 0:00:05]} 43. Kg1 {[%emt 0:00:01]} Bg4 {[%emt 0:00:09]} 44. Rb5 {[%emt 0:00:05]} Re2 {[%emt 0:00:05]} 45. Bd5 {[%emt 0:00:01]} Rd2 {[%emt 0:00:03]} 46. Ra5 {[%emt 0:00:01]} Rd1+ {[%emt 0:00:02]} 47. Kf2 {[%emt 0:00:01]} Rd2+ {[%emt 0:00:05]} 48. Ke3 {[%emt 0:00:02]} Re2+ {[%emt 0:00:04]} 49. Kd3 {[%emt 0:00:03]} Re1 {[%emt 0:00:03]} 50. Ra7 {[%emt 0:00:03]} Be6 {[%emt 0:00:08]} 51. Bxe6 fxe6 {[%emt 0:00:01]} 52. Ra3 {[%emt 0:00:07]} Kf5 {[%emt 0:00:03]} 53. Kd4 {[%emt 0:00:01]} Kg4 {[%emt 0:00:04]} 54. Rb3 {[%emt 0:00:03]} e5+ {[%emt 0:00:02]} 55. Kd5 {[%emt 0:00:01]} e4 {[%emt 0:00:04]} 56. Kd4 {[%emt 0:00:03]} e3 {[%emt 0:00:01]} 57. Rb6 {[%emt 0:00:01]} Kf3 {[%emt 0:00:05]} 58. Rf6+ {[%emt 0:00:02]} Kxg3 {[%emt 0:00:02]} 59. Rxg6+ {[%emt 0:00:01]} Kxh4 {[%emt 0:00:01]} 60. Kd3 {[%emt 0:00:03]} Kh3 {[%emt 0:00:03]} 61. Re6 {[%emt 0:00:01]} h4 {[%emt 0:00:02]} 62. Re4 {[%emt 0:00:03]} Kg3 {[%emt 0:00:01]} 63. Re7 {[%emt 0:00:03]} h3 {[%emt 0:00:07]} 64. Rg7+ {[%emt 0:00:01]} Kh2 {[%emt 0:00:01]} 65. Rg8 {[%emt 0:00:02]} Rg1 {[%emt 0:00:06]} 66. Re8 {[%emt 0:00:04]} Rg3 {[%emt 0:00:01]} 67. Ke2 {[%emt 0:00:01]} Kg2 {[%emt 0:00:01]} 68. Rf8 {[%emt 0:00:04]} h2 {[%emt 0:00:02]} 69. Rf1 {[%emt 0:00:02]} h1=Q {[%emt 0:00:01]} 70. Rb1 {[%emt 0:00:03]} Qh5+ {[%emt 0:00:03]} 71. Ke1 {[%emt 0:00:01]} Rf3 {[%emt 0:00:03]} 72. Rb2+ {[%emt 0:00:01]} Rf2 {[%emt 0:00:01]} 73. Rc2 {[%emt 0:00:04]} Qh1# {[%emt 0:00:01]} 0-1

[Event "RUS-ch Blitz Women 2018"]
[Site "Sochi"]
[Date "2018.10.07"]
[Round "15"]
[White "Tomilova, Elena"]
[Black "Ivanova, Karina"]
[Result "0-1"]
[ECO "A45"]
[WhiteElo "2328"]
[BlackElo "2124"]
[Annotator "NA"]
[PlyCount "66"]
[EventDate "2018.10.07"]
[EventType "swiss"]
[EventCountry "RUS"]
[SourceTitle "playchess.com"]
[Source "ChessBase"]
[SourceQuality "1"]
[TimeControl "180+2"]

1. d4 {[%emt 0:00:00]} Nf6 {[%emt 0:00:00]} 2. Bg5 {[%emt 0:00:00]} e6 {[%emt 0:00:01]} 3. e4 {[%emt 0:00:01]} h6 {[%emt 0:00:03]} 4. Bxf6 {[%emt 0:00:01]} Qxf6 {[%emt 0:00:01]} 5. c3 {[%emt 0:00:01]} d5 {[%emt 0:00:03]} 6. Nd2 {[%emt 0:00:02]} dxe4 {[%emt 0:00:26]} 7. Nxe4 {[%emt 0:00:01]} Qd8 {[%emt 0:00:01]} 8. Nf3 {[%emt 0:00:04]} Nd7 {[%emt 0:00:04]} 9. Bd3 {[%emt 0:00:05]} Be7 {[%emt 0:00:03]} 10. Qe2 {[%emt 0:00:04]} Nf6 {[%emt 0:00:03]} 11. O-O-O {[%emt 0:00:10]} c6 {[%emt 0:00:10]} 12. h4 {[%emt 0:00:11]} Qa5 {[%emt 0:00:07]} 13. Kb1 {[%emt 0:00:02]} Bd7 {[%emt 0:00:04]} 14. Ne5 {[%emt 0:00:03]} Nxe4 {[%emt 0:00:29]} 15. Qxe4 {[%emt 0:00:07]} Bf6 {[%emt 0:00:03]} 16. Nxd7 {[%emt 0:00:18]} Kxd7 {[%emt 0:00:02]} 17. f4 {[%emt 0:00:14]} Rad8 {[%emt 0:00:17]} 18. g4 {[%emt 0:00:12]} Qd5 {[%emt 0:00:21]} 19. Qe3 {[%emt 0:00:05]} Kc7 {[%emt 0:00:06]} 20. Be4 {[%emt 0:00:12]} Qd6 {[%emt 0:00:05]} 21. g5 {[%emt 0:00:06]} hxg5 {[%emt 0:00:04]} 22. hxg5 {[%emt 0:00:02]} Be7 {[%emt 0:00:02]} 23. f5 {[%emt 0:00:16]} exf5 {[%emt 0:00:12]} 24. Bxf5 {[%emt 0:00:03]} Rde8 {[%emt 0:00:31]} 25. Bc2 {[%emt 0:00:28]} Rxh1 {[%emt 0:00:19]} 26. Rxh1 {[%emt 0:00:01]} Qd5 {[%emt 0:00:01]} 27. Qg3+ {[%emt 0:00:07]} Bd6 {[%emt 0:00:04]} 28. Qh4 {[%emt 0:00:05]} Re2 {[%emt 0:00:03]} 29. Rc1 {[%emt 0:00:29]} Qg2 {[%emt 0:00:05]} 30. g6 {[%emt 0:00:05]} fxg6 {[%emt 0:00:05]} 31. Qh7 {[%emt 0:00:01]} Bf4 {[%emt 0:00:04]} 32. Qxg7+ Kb6 33. Qe7 {[%emt 0:00:12]} Rxe7 {[%emt 0:00:02]} 0-1

[Event "RUS-ch Blitz Women 2018"]
[Site "Sochi"]
[Date "2018.10.07"]
[Round "15"]
[White "Guseva, Marina"]
[Black "Bivol, Alina"]
[Result "0-1"]
[ECO "A40"]
[WhiteElo "2292"]
[BlackElo "2403"]
[Annotator "NA"]
[PlyCount "95"]
[EventDate "2018.10.07"]
[EventType "swiss"]
[EventCountry "RUS"]
[SourceTitle "playchess.com"]
[Source "ChessBase"]
[SourceQuality "1"]
[TimeControl "180+2"]

1. d4 {[%emt 0:00:00]} g6 {[%emt 0:00:00]} 2. c4 {[%emt 0:00:01]} Bg7 {[%emt 0:00:00]} 3. e4 {[%emt 0:00:01]} d6 {[%emt 0:00:08]} 4. Nc3 {[%emt 0:00:03]} e5 {[%emt 0:00:05]} 5. dxe5 {[%emt 0:00:11]} Bxe5 {[%emt 0:00:06]} 6. Nf3 {[%emt 0:00:15]} Bg7 {[%emt 0:00:00]} 7. Be2 {[%emt 0:00:06]} Nf6 {[%emt 0:00:14]} 8. Nd4 {[%emt 0:00:01]} O-O {[%emt 0:00:05]} 9. O-O {[%emt 0:00:03]} Re8 {[%emt 0:00:01]} 10. f3 {[%emt 0:00:01]} Nc6 {[%emt 0:00:07]} 11. Nxc6 {[%emt 0:00:03]} bxc6 {[%emt 0:00:01]} 12. Bg5 {[%emt 0:00:03]} Qd7 {[%emt 0:00:16]} 13. Qd2 {[%emt 0:00:03]} Qe6 {[%emt 0:00:07]} 14. Rad1 {[%emt 0:00:31]} Nd7 {[%emt 0:00:01]} 15. Rfe1 {[%emt 0:00:09]} a5 {[%emt 0:00:08]} 16. b3 {[%emt 0:00:20]} Qe5 {[%emt 0:00:11]} 17. Na4 {[%emt 0:00:03]} Qe6 {[%emt 0:00:28]} 18. Bf1 {[%emt 0:00:05]} Bb7 {[%emt 0:00:16]} 19. Be3 {[%emt 0:00:09]} c5 {[%emt 0:00:03]} 20. Nc3 {[%emt 0:00:02]} Ne5 {[%emt 0:00:08]} 21. Nd5 {[%emt 0:00:07]} Rec8 {[%emt 0:00:11]} 22. Bf2 {[%emt 0:00:25]} a4 {[%emt 0:00:01]} 23. b4 {[%emt 0:00:18]} cxb4 {[%emt 0:00:10]} 24. Qxb4 {[%emt 0:00:01]} Ba6 {[%emt 0:00:13]} 25. c5 {[%emt 0:00:03]} Bxf1 {[%emt 0:00:09]} 26. Rxf1 {[%emt 0:00:02]} dxc5 {[%emt 0:00:15]} 27. Bxc5 {[%emt 0:00:03]} Nc6 {[%emt 0:00:05]} 28. Qa3 {[%emt 0:00:14]} h5 {[%emt 0:00:06]} 29. Rc1 {[%emt 0:00:03]} Kh7 {[%emt 0:00:03]} 30. Bf2 {[%emt 0:00:04]} Be5 {[%emt 0:00:14]} 31. Qc5 {[%emt 0:00:05]} Na5 {[%emt 0:00:07]} 32. Bg3 {[%emt 0:00:12]} Bd6 {[%emt 0:00:02]} 33. Bxd6 {[%emt 0:00:03]} cxd6 {[%emt 0:00:00]} 34. Qd4 {[%emt 0:00:02]} Nc6 {[%emt 0:00:04]} 35. Qb2 {[%emt 0:00:05]} Ne5 {[%emt 0:00:01]} 36. Qd4 {[%emt 0:00:07]} Rxc1 {[%emt 0:00:02]} 37. Rxc1 {[%emt 0:00:01]} Rc8 {[%emt 0:00:01]} 38. Rxc8 {[%emt 0:00:05]} Qxc8 {[%emt 0:00:00]} 39. h3 {[%emt 0:00:05]} Qc1+ {[%emt 0:00:02]} 40. Kh2 {[%emt 0:00:01]} Qc2 {[%emt 0:00:02]} 41. Qe3 {[%emt 0:00:03]} Qxa2 {[%emt 0:00:02]} 42. Qf4 {[%emt 0:00:01]} Kg7 {[%emt 0:00:06]} 43. Qf6+ {[%emt 0:00:01]} Kg8 {[%emt 0:00:01]} 44. Ne7+ {[%emt 0:00:01]} Kf8 {[%emt 0:00:01]} 45. Nd5 {[%emt 0:00:02]} Kg8 {[%emt 0:00:01]} 46. Ne7+ {[%emt 0:00:03]} Kh7 {[%emt 0:00:03]} 47. Nd5 {[%emt 0:00:07]} Qb2 {[%emt 0:00:02]} 48. Kg3 {[%emt 0:00:02]} 0-1

[Event "RUS-ch Blitz Women 2018"]
[Site "Sochi"]
[Date "2018.10.07"]
[Round "15"]
[White "Maltsevskaya, Aleksandra"]
[Black "Nebolsina, Vera"]
[Result "1-0"]
[ECO "C42"]
[WhiteElo "2290"]
[BlackElo "2220"]
[Annotator "NA"]
[PlyCount "97"]
[EventDate "2018.10.07"]
[EventType "swiss"]
[EventCountry "RUS"]
[SourceTitle "playchess.com"]
[Source "ChessBase"]
[SourceQuality "1"]
[TimeControl "180+2"]

1. e4 {[%emt 0:00:00]} e5 {[%emt 0:00:00]} 2. Nf3 {[%emt 0:00:02]} Nf6 {[%emt 0:00:01]} 3. Nxe5 {[%emt 0:00:02]} d6 {[%emt 0:00:01]} 4. Nf3 {[%emt 0:00:00]} Nxe4 {[%emt 0:00:01]} 5. Nc3 {[%emt 0:00:01]} Nf6 {[%emt 0:00:02]} 6. g3 {[%emt 0:00:15]} Be7 {[%emt 0:00:11]} 7. Bg2 {[%emt 0:00:01]} O-O {[%emt 0:00:03]} 8. O-O {[%emt 0:00:02]} c6 {[%emt 0:00:21]} 9. d4 {[%emt 0:00:10]} Re8 {[%emt 0:00:06]} 10. Re1 {[%emt 0:00:04]} Nbd7 {[%emt 0:00:05]} 11. Ne2 {[%emt 0:00:02]} Nf8 {[%emt 0:00:05]} 12. c3 {[%emt 0:00:02]} Ng6 {[%emt 0:00:13]} 13. Nf4 {[%emt 0:00:00]} Nxf4 {[%emt 0:00:43]} 14. Bxf4 {[%emt 0:00:02]} Bf5 {[%emt 0:00:07]} 15. Nh4 {[%emt 0:00:09]} Be6 {[%emt 0:00:03]} 16. Nf3 {[%emt 0:00:07]} Qd7 {[%emt 0:00:09]} 17. a4 {[%emt 0:00:17]} Bh3 {[%emt 0:00:22]} 18. Bh1 {[%emt 0:00:02]} Nd5 {[%emt 0:00:03]} 19. Bd2 {[%emt 0:00:02]} Bg4 {[%emt 0:00:06]} 20. a5 {[%emt 0:00:04]} a6 {[%emt 0:00:04]} 21. Qb3 {[%emt 0:00:05]} Bf8 {[%emt 0:00:06]} 22. c4 {[%emt 0:00:12]} Nf6 {[%emt 0:00:02]} 23. Qd3 {[%emt 0:00:07]} Bf5 {[%emt 0:00:01]} 24. Qb3 {[%emt 0:00:02]} Be4 {[%emt 0:00:03]} 25. Re3 {[%emt 0:00:17]} Ng4 {[%emt 0:00:08]} 26. Ree1 {[%emt 0:00:04]} g6 {[%emt 0:00:06]} 27. Re2 {[%emt 0:00:27]} Bg7 {[%emt 0:00:12]} 28. Rae1 {[%emt 0:00:01]} d5 {[%emt 0:00:09]} 29. c5 {[%emt 0:00:27]} Rab8 {[%emt 0:00:03]} 30. Bc3 {[%emt 0:00:07]} h5 {[%emt 0:00:04]} 31. h3 {[%emt 0:00:03]} Nh6 {[%emt 0:00:02]} 32. Kh2 {[%emt 0:00:02]} Nf5 {[%emt 0:00:08]} 33. Qd1 {[%emt 0:00:01]} Kh8 {[%emt 0:00:03]} 34. Ne5 {[%emt 0:00:03]} Bxe5 {[%emt 0:00:03]} 35. Bxe4 {[%emt 0:00:01]} Bg7 {[%emt 0:00:02]} 36. Bxf5 {[%emt 0:00:07]} gxf5 {[%emt 0:00:04]} 37. Rxe8+ {[%emt 0:00:04]} Rxe8 {[%emt 0:00:01]} 38. Qxh5+ {[%emt 0:00:02]} Kg8 {[%emt 0:00:00]} 39. Rxe8+ {[%emt 0:00:03]} Qxe8 {[%emt 0:00:02]} 40. Qxf5 {[%emt 0:00:02]} Qe2 {[%emt 0:00:01]} 41. h4 {[%emt 0:00:03]} Qd1 {[%emt 0:00:05]} 42. Qf4 {[%emt 0:00:09]} Kf8 {[%emt 0:00:07]} 43. Kg2 {[%emt 0:00:02]} Kg8 {[%emt 0:00:01]} 44. Qf3 {[%emt 0:00:02]} Qc2 {[%emt 0:00:02]} 45. h5 {[%emt 0:00:01]} Kh7 {[%emt 0:00:03]} 46. Qxf7 {[%emt 0:00:03]} Qe4+ {[%emt 0:00:01]} 47. Qf3 {[%emt 0:00:02]} Qe8 {[%emt 0:00:04]} 48. Qf5+ {[%emt 0:00:02]} Kh8 {[%emt 0:00:01]} 49. g4 {[%emt 0:00:06]} 1-0

[Event "RUS-ch Blitz Women 2018"]
[Site "Sochi"]
[Date "2018.10.07"]
[Round "15"]
[White "Vinokur, Yuliya"]
[Black "Charochkina, Daria"]
[Result "1/2-1/2"]
[ECO "A81"]
[WhiteElo "2170"]
[BlackElo "2344"]
[Annotator "NA"]
[PlyCount "98"]
[EventDate "2018.10.07"]
[EventType "swiss"]
[EventCountry "RUS"]
[SourceTitle "playchess.com"]
[Source "ChessBase"]
[SourceQuality "1"]
[TimeControl "180+2"]

1. d4 {[%emt 0:00:00]} f5 {[%emt 0:00:01]} 2. g3 {[%emt 0:00:03]} Nf6 {[%emt 0:00:00]} 3. Bg2 {[%emt 0:00:02]} e6 {[%emt 0:00:01]} 4. c4 {[%emt 0:00:03]} d5 {[%emt 0:00:01]} 5. Nh3 {[%emt 0:00:02]} c6 {[%emt 0:00:02]} 6. O-O {[%emt 0:00:02]} Bd6 {[%emt 0:00:01]} 7. Bf4 {[%emt 0:00:02]} Be7 {[%emt 0:00:01]} 8. Nd2 {[%emt 0:00:05]} O-O {[%emt 0:00:04]} 9. b3 {[%emt 0:00:02]} h6 {[%emt 0:00:09]} 10. Be5 {[%emt 0:00:08]} Ng4 {[%emt 0:00:01]} 11. Nf4 {[%emt 0:00:21]} Nxe5 {[%emt 0:00:15]} 12. dxe5 {[%emt 0:00:02]} Qe8 {[%emt 0:00:10]} 13. Rc1 {[%emt 0:00:44]} Na6 {[%emt 0:00:02]} 14. Nf3 {[%emt 0:00:17]} g5 {[%emt 0:00:15]} 15. Nd3 {[%emt 0:00:01]} Bd7 {[%emt 0:00:02]} 16. cxd5 {[%emt 0:00:12]} exd5 {[%emt 0:00:11]} 17. Nd4 {[%emt 0:00:11]} Nc7 {[%emt 0:00:00]} 18. f4 {[%emt 0:00:02]} Ne6 {[%emt 0:00:08]} 19. Nxe6 {[%emt 0:00:04]} Bxe6 {[%emt 0:00:01]} 20. Qd2 {[%emt 0:00:05]} b6 {[%emt 0:00:20]} 21. Nb4 {[%emt 0:00:08]} Bc5+ {[%emt 0:00:16]} 22. Kh1 {[%emt 0:00:04]} a5 {[%emt 0:00:01]} 23. Nd3 {[%emt 0:00:02]} Be7 {[%emt 0:00:01]} 24. b4 {[%emt 0:00:12]} a4 {[%emt 0:00:13]} 25. a3 {[%emt 0:00:02]} Rc8 {[%emt 0:00:19]} 26. Qe3 {[%emt 0:00:02]} Bd8 {[%emt 0:00:10]} 27. Rc2 {[%emt 0:00:04]} Kh8 {[%emt 0:00:08]} 28. Rfc1 {[%emt 0:00:01]} Qd7 {[%emt 0:00:10]} 29. Nb2 {[%emt 0:00:10]} b5 {[%emt 0:00:05]} 30. Qd4 {[%emt 0:00:06]} gxf4 {[%emt 0:00:04]} 31. gxf4 {[%emt 0:00:02]} Rg8 {[%emt 0:00:01]} 32. Nd3 {[%emt 0:00:01]} Qg7 {[%emt 0:00:16]} 33. Bf3 {[%emt 0:00:03]} Qd7 {[%emt 0:00:12]} 34. Nc5 {[%emt 0:00:02]} Qe7 {[%emt 0:00:02]} 35. Nxe6 {[%emt 0:00:03]} Qxe6 {[%emt 0:00:00]} 36. Bxd5 {[%emt 0:00:13]} Qd7 {[%emt 0:00:15]} 37. e6+ {[%emt 0:00:02]} Qg7 {[%emt 0:00:01]} 38. Qxg7+ {[%emt 0:00:04]} Rxg7 {[%emt 0:00:01]} 39. Rxc6 {[%emt 0:00:06]} Rxc6 {[%emt 0:00:03]} 40. Rxc6 {[%emt 0:00:01]} Kh7 {[%emt 0:00:05]} 41. Rd6 {[%emt 0:00:12]} Bc7 {[%emt 0:00:08]} 42. Rd7 {[%emt 0:00:01]} Rxd7 {[%emt 0:00:01]} 43. exd7 {[%emt 0:00:02]} Kg7 {[%emt 0:00:02]} 44. Bc6 {[%emt 0:00:01]} Kf6 {[%emt 0:00:01]} 45. Bxb5 Ke7 46. e3 {[%emt 0:00:03]} Bb6 {[%emt 0:00:02]} 47. Kg2 {[%emt 0:00:02]} Bxe3 {[%emt 0:00:01]} 48. Kf3 {[%emt 0:00:02]} Bc1 {[%emt 0:00:00]} 49. Bxa4 {[%emt 0:00:01]} Bxa3 {[%emt 0:00:01]} 1/2-1/2

[Event "RUS-ch Blitz Women 2018"]
[Site "Sochi"]
[Date "2018.10.07"]
[Round "15"]
[White "Vasilevich, Irina"]
[Black "Goltseva, Ekaterina"]
[Result "1-0"]
[ECO "A01"]
[WhiteElo "2160"]
[BlackElo "2169"]
[Annotator "NA"]
[PlyCount "93"]
[EventDate "2018.10.07"]
[EventType "swiss"]
[EventCountry "RUS"]
[SourceTitle "playchess.com"]
[Source "ChessBase"]
[SourceQuality "1"]
[TimeControl "180+2"]

1. b3 {[%emt 0:00:00]} Nf6 {[%emt 0:00:05]} 2. Bb2 {[%emt 0:00:00]} d5 {[%emt 0:00:02]} 3. e3 {[%emt 0:00:01]} c5 {[%emt 0:00:08]} 4. Be2 {[%emt 0:00:01]} Nc6 {[%emt 0:00:02]} 5. d3 {[%emt 0:00:01]} g6 {[%emt 0:00:25]} 6. Nd2 {[%emt 0:00:03]} Bg7 {[%emt 0:00:01]} 7. a3 {[%emt 0:00:01]} b6 {[%emt 0:00:08]} 8. c4 {[%emt 0:00:08]} O-O {[%emt 0:00:07]} 9. cxd5 {[%emt 0:00:04]} Nxd5 {[%emt 0:00:04]} 10. Bxg7 {[%emt 0:00:04]} Kxg7 {[%emt 0:00:01]} 11. Qc2 {[%emt 0:00:05]} Bb7 {[%emt 0:00:04]} 12. h4 {[%emt 0:00:08]} e6 {[%emt 0:00:24]} 13. h5 {[%emt 0:00:09]} f5 {[%emt 0:00:28]} 14. Ngf3 {[%emt 0:00:21]} Qf6 {[%emt 0:00:03]} 15. Rc1 {[%emt 0:00:10]} Rad8 {[%emt 0:00:13]} 16. Nc4 {[%emt 0:00:56]} e5 {[%emt 0:00:09]} 17. Qb2 {[%emt 0:00:15]} Rfe8 {[%emt 0:00:15]} 18. h6+ {[%emt 0:00:27]} Kg8 {[%emt 0:00:09]} 19. O-O {[%emt 0:00:03]} e4 {[%emt 0:00:24]} 20. dxe4 {[%emt 0:00:08]} fxe4 {[%emt 0:00:05]} 21. Qxf6 {[%emt 0:00:12]} Nxf6 {[%emt 0:00:03]} 22. Ng5 {[%emt 0:00:01]} Ne5 {[%emt 0:00:18]} 23. Rcd1 {[%emt 0:00:09]} Nd3 {[%emt 0:00:03]} 24. Rd2 {[%emt 0:00:08]} b5 {[%emt 0:00:03]} 25. Na5 {[%emt 0:00:02]} Ba6 {[%emt 0:00:02]} 26. Nxe4 {[%emt 0:00:06]} Nxe4 {[%emt 0:00:03]} 27. Rxd3 {[%emt 0:00:01]} Rxd3 {[%emt 0:00:01]} 28. Bxd3 {[%emt 0:00:01]} Nd6 {[%emt 0:00:02]} 29. Bc2 {[%emt 0:00:04]} c4 {[%emt 0:00:02]} 30. bxc4 {[%emt 0:00:01]} bxc4 {[%emt 0:00:01]} 31. Rd1 {[%emt 0:00:01]} Nb5 {[%emt 0:00:02]} 32. Ba4 {[%emt 0:00:02]} Re5 {[%emt 0:00:03]} 33. Nxc4 Re4 {[%emt 0:00:02]} 34. Bxb5 {[%emt 0:00:05]} Bxb5 {[%emt 0:00:01]} 35. Nd6 {[%emt 0:00:01]} Re5 {[%emt 0:00:02]} 36. Nxb5 {[%emt 0:00:03]} Rxb5 {[%emt 0:00:01]} 37. Rd8+ {[%emt 0:00:01]} Kf7 {[%emt 0:00:01]} 38. Rd7+ {[%emt 0:00:00]} Kf6 {[%emt 0:00:02]} 39. Rxa7 {[%emt 0:00:02]} Rb3 {[%emt 0:00:05]} 40. a4 {[%emt 0:00:04]} Ra3 {[%emt 0:00:03]} 41. a5 {[%emt 0:00:02]} Kg5 {[%emt 0:00:01]} 42. a6 {[%emt 0:00:04]} Kxh6 {[%emt 0:00:02]} 43. Ra8 {[%emt 0:00:01]} Kg7 {[%emt 0:00:02]} 44. a7 {[%emt 0:00:01]} Ra4 {[%emt 0:00:02]} 45. f3 {[%emt 0:00:02]} h5 {[%emt 0:00:03]} 46. e4 {[%emt 0:00:01]} Ra2 {[%emt 0:00:02]} 47. Kh2 {[%emt 0:00:02]} 1-0